[Event "Late-Titled-Tuesday-Blitz-May-14-2024"]
[Site "Chess.com"]
[Date "2024.05.14"]
[Round "5"]
[White "alexrustemov"]
[Black "Ditman2007"]
[Result "1-0"]
[WhiteElo "2922"]
[BlackElo "2698"]
[TimeControl "180+1"]
[EndTime "14:57:01 PDT"]
[Termination "alexrustemov won by resignation"]

1. d4 {[%clk 0:02:57.6]} 1... Nf6 {[%clk 0:02:59.5]} 2. c4 {[%clk 0:02:56.3]}
2... c5 {[%clk 0:02:59.8]} 3. Nf3 {[%clk 0:02:54.5]} 3... cxd4 {[%clk
0:02:56.1]} 4. Nxd4 {[%clk 0:02:55.4]} 4... g6 {[%clk 0:02:56.7]} 5. g3 {[%clk
0:02:48.6]} 5... Bg7 {[%clk 0:02:57.2]} 6. Bg2 {[%clk 0:02:48.9]} 6... O-O
{[%clk 0:02:57.9]} 7. Nc3 {[%clk 0:02:48.4]} 7... Nc6 {[%clk 0:02:58.4]} 8. O-O
{[%clk 0:02:47.2]} 8... Nxd4 {[%clk 0:02:58.4]} 9. Qxd4 {[%clk 0:02:46.7]} 9...
d6 {[%clk 0:02:59.3]} 10. Rd1 {[%clk 0:02:46.8]} 10... Nd7 {[%clk 0:02:55.2]}
11. Qh4 {[%clk 0:02:26.1]} 11... Ne5 {[%clk 0:02:33.5]} 12. c5 {[%clk
0:02:21.3]} 12... Ng4 {[%clk 0:01:48.3]} 13. h3 {[%clk 0:02:17.5]} 13... Bf6
{[%clk 0:00:50]} 14. Bg5 {[%clk 0:02:15.5]} 14... Bxg5 {[%clk 0:00:50.4]} 15.
Qxg5 {[%clk 0:02:16.4]} 15... Nf6 {[%clk 0:00:51.3]} 16. cxd6 {[%clk 0:02:06.3]}
16... exd6 {[%clk 0:00:52.2]} 17. Qf4 {[%clk 0:02:02.9]} 17... Ne8 {[%clk
0:00:47.2]} 18. Ne4 {[%clk 0:01:59.2]} 18... Be6 {[%clk 0:00:39.4]} 19. Rd4
{[%clk 0:01:49]} 19... d5 {[%clk 0:00:34.7]} 20. Nc3 {[%clk 0:01:47.7]} 20...
Qf6 {[%clk 0:00:24.8]} 21. Qd2 {[%clk 0:01:42.8]} 21... Nc7 {[%clk 0:00:24]} 22.
Rd1 {[%clk 0:01:40.5]} 22... Rfe8 {[%clk 0:00:23]} 23. e3 {[%clk 0:01:35.8]}
23... Rab8 {[%clk 0:00:21.7]} 24. a3 {[%clk 0:01:34.3]} 24... b5 {[%clk
0:00:21.8]} 25. h4 {[%clk 0:01:24.7]} 25... h5 {[%clk 0:00:18.1]} 26. Nxd5
{[%clk 0:01:20.2]} 26... Nxd5 {[%clk 0:00:19]} 27. Bxd5 {[%clk 0:01:19.9]} 27...
Bxd5 {[%clk 0:00:18.8]} 28. Rxd5 {[%clk 0:01:20.8]} 28... Rb6 {[%clk 0:00:18.5]}
29. Rc1 {[%clk 0:01:10.6]} 29... Kg7 {[%clk 0:00:13.9]} 30. Rc7 {[%clk 0:01:09]}
30... Re7 {[%clk 0:00:13.5]} 31. Rdd7 {[%clk 0:01:02.7]} 31... Rxd7 {[%clk
0:00:13.3]} 32. Rxd7 {[%clk 0:01:02.6]} 32... a6 {[%clk 0:00:11.1]} 33. Qd5
{[%clk 0:00:56.9]} 33... Re6 {[%clk 0:00:09.8]} 34. b4 {[%clk 0:00:53.1]} 34...
Qe5 {[%clk 0:00:05.5]} 35. Qxe5+ {[%clk 0:00:50.6]} 35... Rxe5 {[%clk
0:00:06.4]} 36. Rd6 {[%clk 0:00:50.8]} 36... a5 {[%clk 0:00:06.5]} 37. bxa5
{[%clk 0:00:47.8]} 37... Re4 {[%clk 0:00:07.4]} 38. Rb6 {[%clk 0:00:47]} 38...
Ra4 {[%clk 0:00:08.3]} 39. Rxb5 {[%clk 0:00:47.2]} 39... Rxa3 {[%clk 0:00:09.2]}
40. Kg2 {[%clk 0:00:45.8]} 40... Kf6 {[%clk 0:00:10.1]} 41. Kf3 {[%clk
0:00:43.9]} 41... Ra4 {[%clk 0:00:10.3]} 42. e4 {[%clk 0:00:43.7]} 42... Ra3+
{[%clk 0:00:10.7]} 43. Kf4 {[%clk 0:00:43.5]} 43... Ra4 {[%clk 0:00:10.6]} 44.
Rb6+ {[%clk 0:00:42.6]} 44... Kg7 {[%clk 0:00:10.4]} 45. a6 {[%clk 0:00:43]}
45... f5 {[%clk 0:00:10.1]} 46. f3 {[%clk 0:00:42.8]} 46... fxe4 {[%clk
0:00:10.9]} 47. fxe4 {[%clk 0:00:42.8]} 47... Ra3 {[%clk 0:00:11.8]} 48. Rb7+
{[%clk 0:00:35.9]} 48... Kf6 {[%clk 0:00:10.7]} 49. a7 {[%clk 0:00:34.9]} 49...
Ra4 {[%clk 0:00:10.6]} 50. Ke3 {[%clk 0:00:33]} 50... Ke5 {[%clk 0:00:10.6]} 51.
Re7+ {[%clk 0:00:32.5]} 51... Kf6 {[%clk 0:00:10.9]} 52. Rc7 {[%clk 0:00:28.5]}
52... Ke5 {[%clk 0:00:11]} 53. Kd3 {[%clk 0:00:28.4]} 53... Ra3+ {[%clk
0:00:10.5]} 54. Kc4 {[%clk 0:00:28.3]} 54... Kxe4 {[%clk 0:00:11]} 55. Kb5
{[%clk 0:00:24.7]} 55... Kf3 {[%clk 0:00:11.4]} 56. Rc3+ {[%clk 0:00:22.4]}
56... Rxc3 {[%clk 0:00:11.8]} 57. a8=Q+ {[%clk 0:00:22.9]} 57... Kxg3 {[%clk
0:00:12.4]} 58. Qe4 {[%clk 0:00:20.5]} 58... Rb3+ {[%clk 0:00:08.4]} 59. Kc4
{[%clk 0:00:20.2]} 59... Rf3 {[%clk 0:00:05.6]} 60. Qxg6+ {[%clk 0:00:18.4]}
60... Kh3 {[%clk 0:00:06.4]} 61. Qxh5 {[%clk 0:00:16.7]} 61... Rf4+ {[%clk
0:00:07.1]} 62. Kd3 {[%clk 0:00:16.5]} 62... Rxh4 {[%clk 0:00:07.8]} 63. Qf3+
{[%clk 0:00:16.4]} 63... Kh2 {[%clk 0:00:08.3]} 64. Ke2 {[%clk 0:00:16.1]} 64...
Rh8 {[%clk 0:00:08.2]} 65. Kf2 {[%clk 0:00:15.6]} 65... Rg8 {[%clk 0:00:03.2]}
66. Qf4+ {[%clk 0:00:15.7]} 66... Kh3 {[%clk 0:00:03.2]} 67. Qf5+ {[%clk
0:00:15.8]} 67... Kh4 {[%clk 0:00:03]} 68. Qh7+ {[%clk 0:00:16]} 68... Kg5
{[%clk 0:00:03]} 69. Qxg8+ {[%clk 0:00:16.2]} 69... Kf6 {[%clk 0:00:03.9]} 70.
Qg4 {[%clk 0:00:16]} 1-0

[Event "Late-Titled-Tuesday-Blitz-May-14-2024"]
[Site "Chess.com"]
[Date "2024.05.14"]
[Round "5"]
[White "PepeCuenca"]
[Black "doublesik"]
[Result "1-0"]
[WhiteElo "2820"]
[BlackElo "2552"]
[TimeControl "180+1"]
[EndTime "14:57:04 PDT"]
[Termination "PepeCuenca won by resignation"]

1. d4 {[%clk 0:03:00.9]} 1... d5 {[%clk 0:02:58.2]} 2. Bf4 {[%clk 0:03:00.2]}
2... Nf6 {[%clk 0:02:46.4]} 3. e3 {[%clk 0:03:00.3]} 3... e6 {[%clk 0:02:43.7]}
4. Nf3 {[%clk 0:03:00.4]} 4... c5 {[%clk 0:02:42.8]} 5. Nbd2 {[%clk 0:02:59]}
5... Nc6 {[%clk 0:02:42.6]} 6. c3 {[%clk 0:02:59.2]} 6... Bd6 {[%clk 0:02:40.9]}
7. Bg3 {[%clk 0:02:59.6]} 7... O-O {[%clk 0:02:36.1]} 8. Bd3 {[%clk 0:02:59.1]}
8... b6 {[%clk 0:02:36.1]} 9. e4 {[%clk 0:02:59]} 9... Be7 {[%clk 0:02:31.6]}
10. e5 {[%clk 0:02:58.8]} 10... Nh5 {[%clk 0:02:30.6]} 11. Ng5 {[%clk
0:02:59.3]} 11... Bxg5 {[%clk 0:02:27.6]} 12. Qxh5 {[%clk 0:02:59]} 12... g6
{[%clk 0:02:27.1]} 13. Qe2 {[%clk 0:02:58.7]} 13... cxd4 {[%clk 0:02:24.7]} 14.
h4 {[%clk 0:02:51.5]} 14... Bh6 {[%clk 0:01:47.6]} 15. h5 {[%clk 0:02:51.4]}
15... g5 {[%clk 0:01:47]} 16. Nf3 {[%clk 0:02:51]} 16... dxc3 {[%clk 0:01:43]}
17. bxc3 {[%clk 0:02:51]} 17... f5 {[%clk 0:01:34.9]} 18. exf6 {[%clk
0:02:42.2]} 18... Qxf6 {[%clk 0:01:24.2]} 19. O-O {[%clk 0:02:34.2]} 19... Bd7
{[%clk 0:00:57.7]} 20. c4 {[%clk 0:02:28.5]} 20... Rae8 {[%clk 0:00:55.4]} 21.
Nh2 {[%clk 0:02:27.2]} 21... Nd4 {[%clk 0:00:45.5]} 22. Qd1 {[%clk 0:02:19.9]}
22... e5 {[%clk 0:00:35.5]} 23. cxd5 {[%clk 0:02:13.7]} 23... e4 {[%clk
0:00:35.8]} 24. Bc4 {[%clk 0:02:11.8]} 24... b5 {[%clk 0:00:35.5]} 25. Bb3
{[%clk 0:02:05.6]} 25... Bg7 {[%clk 0:00:32.2]} 26. Rc1 {[%clk 0:01:57.6]} 26...
a5 {[%clk 0:00:19]} 27. Rc7 {[%clk 0:01:52.1]} 27... Rd8 {[%clk 0:00:11.4]} 28.
Ng4 {[%clk 0:01:47.3]} 28... Bxg4 {[%clk 0:00:08.7]} 29. Qxg4 {[%clk 0:01:48.2]}
29... a4 {[%clk 0:00:09.2]} 30. Bd1 {[%clk 0:01:42.8]} 30... e3 {[%clk
0:00:09.2]} 31. h6 {[%clk 0:01:28.3]} 31... Bxh6 {[%clk 0:00:05.8]} 32. Qe4
{[%clk 0:01:28.8]} 32... Bg7 {[%clk 0:00:03.2]} 33. Qxe3 {[%clk 0:01:27.8]}
33... Rxd5 {[%clk 0:00:03]} 34. Bg4 {[%clk 0:01:22]} 34... Nf5 {[%clk 0:00:03]}
35. Qe4 {[%clk 0:01:17.6]} 35... Rdd8 {[%clk 0:00:03.1]} 36. Bxf5 {[%clk
0:01:05.8]} 36... Qxf5 {[%clk 0:00:04]} 37. Qe7 {[%clk 0:01:06.6]} 37... Qf6
{[%clk 0:00:03.5]} 38. Qe2 {[%clk 0:01:03.2]} 38... Rfe8 {[%clk 0:00:03.4]} 39.
Qxb5 {[%clk 0:01:02]} 39... Ra8 {[%clk 0:00:01.3]} 40. Rd1 {[%clk 0:01:00]}
40... Kh8 {[%clk 0:00:01.9]} 41. Rc5 {[%clk 0:00:54.2]} 41... Re7 {[%clk
0:00:01.7]} 42. Rxg5 {[%clk 0:00:53.5]} 42... Bh6 {[%clk 0:00:01.8]} 43. Rf5
{[%clk 0:00:52.9]} 43... Qg6 {[%clk 0:00:02.4]} 44. Be5+ {[%clk 0:00:50]} 44...
Bg7 {[%clk 0:00:02.8]} 45. Bg3 {[%clk 0:00:47.2]} 45... Rg8 {[%clk 0:00:02.9]}
46. Qc5 {[%clk 0:00:43.7]} 46... Rf7 {[%clk 0:00:02.1]} 47. Rg5 {[%clk
0:00:40.6]} 47... Qf6 {[%clk 0:00:02.2]} 48. Rh5 {[%clk 0:00:38.5]} 48... Re8
{[%clk 0:00:02.3]} 49. Qc2 {[%clk 0:00:38.2]} 49... h6 {[%clk 0:00:02.5]} 50.
Qxa4 {[%clk 0:00:35.8]} 50... Qg6 {[%clk 0:00:03]} 51. Qh4 {[%clk 0:00:34]}
51... Kg8 {[%clk 0:00:02.6]} 52. Rhd5 {[%clk 0:00:33.4]} 52... Ref8 {[%clk
0:00:03]} 53. Rd6 {[%clk 0:00:32.1]} 53... Rf6 {[%clk 0:00:03.7]} 54. Rxf6
{[%clk 0:00:32.1]} 54... Bxf6 {[%clk 0:00:04.6]} 55. Qc4+ {[%clk 0:00:32.1]}
55... Kh7 {[%clk 0:00:04.4]} 56. Rd7+ {[%clk 0:00:31.8]} 56... Bg7 {[%clk
0:00:05.1]} 57. Be5 {[%clk 0:00:24.4]} 57... Rg8 {[%clk 0:00:05.6]} 58. Bxg7
{[%clk 0:00:19]} 58... Rxg7 {[%clk 0:00:06.5]} 59. Rxg7+ {[%clk 0:00:19.3]}
59... Qxg7 {[%clk 0:00:07.4]} 60. Qe4+ {[%clk 0:00:19.4]} 60... Kh8 {[%clk
0:00:07.9]} 61. a4 {[%clk 0:00:19.6]} 61... Qa1+ {[%clk 0:00:08]} 62. Kh2 {[%clk
0:00:19.9]} 62... Kg7 {[%clk 0:00:07.6]} 63. Qg4+ {[%clk 0:00:19.9]} 63... Kh7
{[%clk 0:00:07.8]} 64. Qf5+ {[%clk 0:00:19.6]} 64... Kg7 {[%clk 0:00:07.9]} 65.
a5 {[%clk 0:00:20]} 65... Qa4 {[%clk 0:00:06.2]} 66. g3 {[%clk 0:00:18.8]} 66...
Qa2 {[%clk 0:00:05.8]} 67. Qe5+ {[%clk 0:00:17.8]} 67... Kg8 {[%clk 0:00:05.5]}
68. Kg2 {[%clk 0:00:18.5]} 68... Qd2 {[%clk 0:00:04.5]} 69. Qe8+ {[%clk
0:00:17.4]} 69... Kg7 {[%clk 0:00:04.6]} 70. Qe5+ {[%clk 0:00:17.5]} 70... Kg8
{[%clk 0:00:05.1]} 71. a6 {[%clk 0:00:17.3]} 71... Qa2 {[%clk 0:00:05.8]} 72.
Qb8+ {[%clk 0:00:15]} 72... Kg7 {[%clk 0:00:05.8]} 73. Qb7+ {[%clk 0:00:14.2]}
73... Kg6 {[%clk 0:00:06.1]} 74. a7 {[%clk 0:00:14.7]} 1-0

[Event "Late-Titled-Tuesday-Blitz-May-14-2024"]
[Site "Chess.com"]
[Date "2024.05.14"]
[Round "5"]
[White "mouseslips_are_the_best"]
[Black "deathadder96"]
[Result "0-1"]
[WhiteElo "2360"]
[BlackElo "2875"]
[TimeControl "180+1"]
[EndTime "14:57:05 PDT"]
[Termination "deathadder96 won by resignation"]

1. e4 {[%clk 0:03:00.9]} 1... e5 {[%clk 0:02:56.8]} 2. Nf3 {[%clk 0:03:01]} 2...
c6 {[%clk 0:02:56.7]} 3. Nxe5 {[%clk 0:02:58.1]} 3... Nf6 {[%clk 0:02:54.7]} 4.
d3 {[%clk 0:02:50.9]} 4... d5 {[%clk 0:02:54.4]} 5. exd5 {[%clk 0:02:49.2]} 5...
Nxd5 {[%clk 0:02:51.4]} 6. Be2 {[%clk 0:02:45]} 6... Bd6 {[%clk 0:02:51.6]} 7.
Nf3 {[%clk 0:02:44.1]} 7... O-O {[%clk 0:02:51.8]} 8. O-O {[%clk 0:02:44.5]}
8... Re8 {[%clk 0:02:51.5]} 9. Nc3 {[%clk 0:02:39.2]} 9... Nxc3 {[%clk
0:02:44.7]} 10. bxc3 {[%clk 0:02:38.9]} 10... Qf6 {[%clk 0:02:44.5]} 11. d4
{[%clk 0:02:35.3]} 11... Bf5 {[%clk 0:02:41.5]} 12. h3 {[%clk 0:02:31.1]} 12...
Qg6 {[%clk 0:02:33.3]} 13. Nh4 {[%clk 0:02:19.6]} 13... Bxc2 {[%clk 0:02:33.1]}
14. Nxg6 {[%clk 0:02:04.2]} 14... Bxd1 {[%clk 0:02:33]} 15. Bxd1 {[%clk
0:02:04.3]} 15... hxg6 {[%clk 0:02:33]} 16. Rb1 {[%clk 0:02:04.8]} 16... b5
{[%clk 0:02:32.3]} 17. Bf3 {[%clk 0:02:03.5]} 17... a6 {[%clk 0:02:32.8]} 18.
Be3 {[%clk 0:01:58.2]} 18... Ra7 {[%clk 0:02:31.5]} 19. d5 {[%clk 0:01:56.8]}
19... c5 {[%clk 0:02:31.8]} 20. Rfe1 {[%clk 0:01:52.1]} 20... Nd7 {[%clk
0:02:30.8]} 21. g3 {[%clk 0:01:42.8]} 21... Ne5 {[%clk 0:02:28.1]} 22. Bg2
{[%clk 0:01:42.6]} 22... Rae7 {[%clk 0:02:25.9]} 23. Re2 {[%clk 0:01:39.6]}
23... Nc4 {[%clk 0:02:22]} 24. Rbe1 {[%clk 0:01:39]} 24... Bxg3 {[%clk
0:02:16.5]} 25. fxg3 {[%clk 0:01:38.6]} 25... Rxe3 {[%clk 0:02:16.6]} 26. Rxe3
{[%clk 0:01:33.2]} 26... Rxe3 {[%clk 0:02:17.5]} 27. Rxe3 {[%clk 0:01:31.1]}
27... Nxe3 {[%clk 0:02:18.4]} 28. d6 {[%clk 0:01:26.1]} 28... Kf8 {[%clk
0:02:18.7]} 29. Bb7 {[%clk 0:01:23]} 29... a5 {[%clk 0:02:09.2]} 30. Bc6 {[%clk
0:01:20.7]} 30... b4 {[%clk 0:02:09.2]} 31. cxb4 {[%clk 0:01:19.9]} 31... axb4
{[%clk 0:02:09.8]} 32. g4 {[%clk 0:01:19.3]} 32... Nc4 {[%clk 0:02:07.5]} 33. d7
{[%clk 0:01:19.3]} 33... Ke7 {[%clk 0:02:08.2]} 34. Kf2 {[%clk 0:01:14]} 34...
Ne5 {[%clk 0:02:07.1]} 35. Bd5 {[%clk 0:01:11.6]} 35... Kxd7 {[%clk 0:02:05.1]}
36. Ke3 {[%clk 0:01:12.2]} 36... Kd6 {[%clk 0:02:05.2]} 37. Bb3 {[%clk
0:01:10.7]} 37... c4 {[%clk 0:02:03.9]} 38. Bc2 {[%clk 0:01:11.3]} 38... g5
{[%clk 0:02:03.5]} 39. Ke4 {[%clk 0:01:10.4]} 39... g6 {[%clk 0:02:01]} 40. Kd4
{[%clk 0:01:08.1]} 40... f6 {[%clk 0:01:56.9]} 41. Bd1 {[%clk 0:01:02.6]} 41...
Kc6 {[%clk 0:01:52.2]} 42. Ba4+ {[%clk 0:01:00.3]} 42... Kb6 {[%clk 0:01:48.6]}
43. Kd5 {[%clk 0:00:56]} 43... Ka5 {[%clk 0:01:11.6]} 44. Bc2 {[%clk 0:00:53.9]}
44... Nd3 {[%clk 0:00:18]} 45. Kxc4 {[%clk 0:00:48]} 45... Nf4 {[%clk
0:00:16.2]} 46. Kd4 {[%clk 0:00:39]} 46... Kb5 {[%clk 0:00:16.2]} 47. Ke3 {[%clk
0:00:31.6]} 47... Nxh3 {[%clk 0:00:15.3]} 48. Bxg6 {[%clk 0:00:31.3]} 48... Nf4
{[%clk 0:00:11.8]} 49. Bc2 {[%clk 0:00:30.9]} 49... Kc4 {[%clk 0:00:12]} 50. Ke4
{[%clk 0:00:29.2]} 50... Kc5 {[%clk 0:00:07.8]} 51. Bb3 {[%clk 0:00:27.6]} 51...
Kd6 {[%clk 0:00:07.8]} 52. Kf5 {[%clk 0:00:26.5]} 52... Ke7 {[%clk 0:00:08]} 53.
Bc4 {[%clk 0:00:25.4]} 53... Ng2 {[%clk 0:00:06.2]} 54. Ke4 {[%clk 0:00:23.2]}
54... Kd6 {[%clk 0:00:06.4]} 55. Kd4 {[%clk 0:00:23.3]} 55... Nf4 {[%clk
0:00:06.1]} 56. Ke4 {[%clk 0:00:21.6]} 56... Ng6 {[%clk 0:00:04]} 57. Kf5 {[%clk
0:00:20.4]} 57... Ne5 {[%clk 0:00:04.5]} 58. Bb3 {[%clk 0:00:20.6]} 58... Ke7
{[%clk 0:00:05.1]} 59. Ke4 {[%clk 0:00:20.9]} 59... Nxg4 {[%clk 0:00:05.3]} 60.
Kf5 {[%clk 0:00:21.4]} 60... Ne5 {[%clk 0:00:05.7]} 61. Ke4 {[%clk 0:00:21.6]}
61... Kd6 {[%clk 0:00:04.5]} 62. Kf5 {[%clk 0:00:21.6]} 62... Ke7 {[%clk
0:00:05.2]} 63. Bd5 {[%clk 0:00:21.5]} 63... Nd7 {[%clk 0:00:05.5]} 64. Bb3
{[%clk 0:00:20.9]} 64... Kd6 {[%clk 0:00:06.4]} 65. Be6 {[%clk 0:00:20.3]} 65...
Nc5 {[%clk 0:00:05.7]} 66. Bb3 {[%clk 0:00:19.8]} 66... Nxb3 {[%clk 0:00:05.9]}
67. axb3 {[%clk 0:00:20.2]} 67... Ke7 {[%clk 0:00:06.8]} 68. Kg4 {[%clk
0:00:20.4]} 68... Ke6 {[%clk 0:00:07]} 69. Kf3 {[%clk 0:00:20.9]} 69... f5
{[%clk 0:00:07.3]} 0-1

[Event "Late-Titled-Tuesday-Blitz-May-14-2024"]
[Site "Chess.com"]
[Date "2024.05.14"]
[Round "5"]
[White "ritanovikova"]
[Black "MalcolmPein"]
[Result "0-1"]
[WhiteElo "2152"]
[BlackElo "2352"]
[TimeControl "180+1"]
[EndTime "14:57:05 PDT"]
[Termination "MalcolmPein won by checkmate"]

1. d4 {[%clk 0:02:56]} 1... Nf6 {[%clk 0:02:58.6]} 2. Bf4 {[%clk 0:02:56.4]}
2... Nd5 {[%clk 0:02:54.5]} 3. Bg3 {[%clk 0:02:55.1]} 3... h5 {[%clk 0:02:54.2]}
4. h3 {[%clk 0:02:45.6]} 4... h4 {[%clk 0:02:53.6]} 5. Bh2 {[%clk 0:02:46.1]}
5... c5 {[%clk 0:02:50.5]} 6. e4 {[%clk 0:02:45.3]} 6... Nf6 {[%clk 0:02:48.2]}
7. e5 {[%clk 0:02:44.6]} 7... Nd5 {[%clk 0:02:42]} 8. c4 {[%clk 0:02:36.7]} 8...
Qa5+ {[%clk 0:02:40.1]} 9. Nd2 {[%clk 0:02:18.5]} 9... Nb6 {[%clk 0:02:27.5]}
10. d5 {[%clk 0:02:12.8]} 10... d6 {[%clk 0:02:25.4]} 11. exd6 {[%clk
0:01:59.1]} 11... exd6 {[%clk 0:02:13.8]} 12. Qe2+ {[%clk 0:01:59]} 12... Kd8
{[%clk 0:02:13.9]} 13. Qf3 {[%clk 0:01:52.3]} 13... Be7 {[%clk 0:01:49.1]} 14.
Qxf7 {[%clk 0:01:40.9]} 14... Rf8 {[%clk 0:01:48.4]} 15. Qxg7 {[%clk 0:01:37.9]}
15... Bf5 {[%clk 0:01:22.4]} 16. Nf3 {[%clk 0:01:26.5]} 16... N8d7 {[%clk
0:01:21.7]} 17. Be2 {[%clk 0:01:22]} 17... Bf6 {[%clk 0:01:14.4]} 18. Qh6 {[%clk
0:01:12.7]} 18... Re8 {[%clk 0:00:56.7]} 19. O-O {[%clk 0:00:34.2]} 19... Rxe2
{[%clk 0:00:55.6]} 20. Nb3 {[%clk 0:00:33.2]} 20... Qb4 {[%clk 0:00:51]} 21.
Bxd6 {[%clk 0:00:31.8]} 21... Nxc4 {[%clk 0:00:50.1]} 22. Bxc5 {[%clk
0:00:28.1]} 22... Qb5 {[%clk 0:00:38.2]} 23. Bd4 {[%clk 0:00:20.8]} 23... Qa6
{[%clk 0:00:27.2]} 24. Bxf6+ {[%clk 0:00:19.1]} 24... Qxf6 {[%clk 0:00:26.5]}
25. Qxf6+ {[%clk 0:00:18.3]} 25... Nxf6 {[%clk 0:00:26.2]} 26. Nxh4 {[%clk
0:00:18.4]} 26... Bh7 {[%clk 0:00:21.6]} 27. d6 {[%clk 0:00:13.9]} 27... Nxb2
{[%clk 0:00:17.5]} 28. Nd4 {[%clk 0:00:10.6]} 28... Re4 {[%clk 0:00:15.4]} 29.
Ndf5 {[%clk 0:00:09.5]} 29... Rf4 {[%clk 0:00:13.8]} 30. g4 {[%clk 0:00:07.4]}
30... Rc8 {[%clk 0:00:13.4]} 31. Rab1 {[%clk 0:00:07]} 31... Rc2 {[%clk
0:00:13.1]} 32. Rfc1 {[%clk 0:00:06.3]} 32... Rxc1+ {[%clk 0:00:11.4]} 33. Rxc1
{[%clk 0:00:07.2]} 33... Nxg4 {[%clk 0:00:11.5]} 34. hxg4 {[%clk 0:00:06.3]}
34... Rxg4+ {[%clk 0:00:11.8]} 35. Kf1 {[%clk 0:00:06.8]} 35... Rf4 {[%clk
0:00:08.7]} 36. Rc5 {[%clk 0:00:06.3]} 36... Nd3 {[%clk 0:00:08.2]} 37. Rd5
{[%clk 0:00:06.4]} 37... Nxf2 {[%clk 0:00:06.9]} 38. Kg1 {[%clk 0:00:06.7]}
38... Ng4 {[%clk 0:00:05.3]} 39. Ng7 {[%clk 0:00:06]} 39... Kd7 {[%clk
0:00:04.7]} 40. Rg5 {[%clk 0:00:05.7]} 40... Nf2 {[%clk 0:00:03.3]} 41. Nhf5
{[%clk 0:00:05.5]} 41... Nh3+ {[%clk 0:00:03.2]} 42. Kh2 {[%clk 0:00:05.9]}
42... Nxg5 {[%clk 0:00:04.1]} 43. Kg3 {[%clk 0:00:06.2]} 43... Rxf5 {[%clk
0:00:04.4]} 44. Nxf5 {[%clk 0:00:06.3]} 44... Bxf5 {[%clk 0:00:04.6]} 45. Kf4
{[%clk 0:00:07.2]} 45... Kxd6 {[%clk 0:00:04.2]} 46. Kxf5 {[%clk 0:00:07.6]}
46... Kc5 {[%clk 0:00:04.6]} 47. Kxg5 {[%clk 0:00:07.9]} 47... Kb4 {[%clk
0:00:05]} 48. Kf4 {[%clk 0:00:08.5]} 48... Ka3 {[%clk 0:00:05.4]} 49. Ke3 {[%clk
0:00:09.4]} 49... Kxa2 {[%clk 0:00:05.7]} 50. Kd4 {[%clk 0:00:10.3]} 50... a5
{[%clk 0:00:05.6]} 51. Kc5 {[%clk 0:00:11.2]} 51... a4 {[%clk 0:00:06.1]} 52.
Kb4 {[%clk 0:00:12.1]} 52... a3 {[%clk 0:00:07]} 53. Kc3 {[%clk 0:00:12.3]}
53... b5 {[%clk 0:00:06.2]} 54. Kc2 {[%clk 0:00:12.4]} 54... b4 {[%clk
0:00:06.5]} 55. Kc1 {[%clk 0:00:12.7]} 55... b3 {[%clk 0:00:06.8]} 56. Kd2
{[%clk 0:00:12.2]} 56... b2 {[%clk 0:00:07.1]} 57. Ke3 {[%clk 0:00:12.3]} 57...
b1=Q {[%clk 0:00:07.7]} 58. Kf2 {[%clk 0:00:08.2]} 58... Qd3 {[%clk 0:00:07.4]}
59. Kg2 {[%clk 0:00:08.3]} 59... Kb3 {[%clk 0:00:07.9]} 60. Kf2 {[%clk
0:00:09.2]} 60... a2 {[%clk 0:00:08.2]} 61. Kg2 {[%clk 0:00:10.1]} 61... a1=Q
{[%clk 0:00:08.4]} 62. Kf2 {[%clk 0:00:11]} 62... Qa2+ {[%clk 0:00:08.6]} 63.
Kg1 {[%clk 0:00:11.2]} 63... Qdb1# {[%clk 0:00:09.1]} 0-1